fUSD/lending_fUSD_20250419
["ID","MTS","AMOUNT","RATE_DAILY","PERIOD"]
[358398208,1745066829229,-151.0,0.00020145,2]
[358398209,1745066829258,-153.873132,0.00020145,2]
[358398210,1745066829286,-152.504411,0.00020145,2]
[358398211,1745066829315,-151.0,0.00020145,2]
[358398212,1745066829344,-213.388807,0.00020145,2]
[358398213,1745066829373,-151.0,0.00020145,2]
[358398214,1745066829400,-151.0,0.00020145,2]
[358398215,1745066829429,-151.0,0.00020145,2]
[358398216,1745066829457,-151.0,0.00020145,2]
[358398217,1745066829489,-151.0,0.00020145,2]
[358398218,1745066829519,-154.197272,0.00020145,2]
[358398219,1745066829546,-151.0,0.00020145,2]
[358398220,1745066829576,-166.515016,0.00020145,2]
[358398221,1745066829604,-168.270169,0.00020145,2]
[358398222,1745066829633,-151.0,0.00020145,2]
[358398223,1745066829662,-151.0,0.00020145,2]
[358398224,1745066829696,-154.447659,0.00020145,2]
[358398225,1745066829725,-151.0,0.00020145,2]
[358398226,1745066829750,-151.0,0.00020145,2]
[358398227,1745066829775,-288.83639,0.00020145,2]
[358398228,1745066829800,-151.0,0.00020145,2]
[358398229,1745066829825,-151.0,0.00020145,2]
[358398230,1745066830052,-151.925225,0.00020145,2]
[358398231,1745066830090,-151.0,0.00020145,2]
[358398232,1745066830116,-152.338823,0.00020145,2]
[358398233,1745066830141,-153.654079,0.00020145,2]
[358398234,1745066830165,-153.31815,0.00020145,2]
[358398235,1745066830190,-151.0,0.00020145,2]
[358398236,1745066830214,-151.0,0.00020145,2]
[358398237,1745066830239,-151.0,0.00020145,2]
[358398238,1745066830266,-151.0,0.00020145,2]
[358398239,1745066830292,-151.0,0.00020145,2]
[358398240,1745066830318,-151.722745,0.00020145,2]
[358398241,1745066830343,-154.079531,0.00020145,2]
[358398242,1745066830369,-151.0,0.00020145,2]
[358398243,1745066830398,-152.620813,0.00020145,2]
[358398244,1745066830424,-162.211002,0.00020145,2]
[358398245,1745066830448,-222.582331,0.00020145,2]
[358398246,1745066830472,-151.0,0.00020145,2]
[358398247,1745066830497,-153.483608,0.00020145,2]
[358398248,1745066830525,-151.0,0.00020145,2]
[358398249,1745066830550,-156.495794,0.00020145,2]
[358398250,1745066830574,-276.502687,0.00020145,2]
[358398251,1745066830599,-268.248718,0.00020145,2]
[358398252,1745066830623,-276.502687,0.00020145,2]
[358398253,1745066830646,-151.0,0.00020145,2]
[358398254,1745066830671,-151.0,0.00020145,2]
[358398255,1745066830695,-151.0,0.00020145,2]
[358398256,1745066830718,-151.0,0.00020145,2]
[358398257,1745066830743,-151.0,0.00020145,2]
[358398258,1745066830767,-151.0,0.00020145,2]
[358398259,1745066830792,-151.0,0.00020145,2]
[358398260,1745066830816,-151.0,0.00020145,2]
[358398261,1745066830839,-151.0,0.00020145,2]
[358398262,1745066830863,-151.0,0.00020145,2]
[358398263,1745066830887,-151.0,0.00020145,2]
[358398264,1745066830910,-1671.51710513,0.0002015,2]
[358398265,1745066830935,-11609.54405445,0.00020161,2]
[358398266,1745066830958,-156.170034,0.00020161,2]
[358398267,1745066830981,-151.0,0.00020161,2]
[358398268,1745066831005,-154.364096,0.00020161,2]
[358398269,1745066831029,-217.740566,0.00020161,2]
[358398270,1745066831053,-155.555409,0.00020161,2]
[358398271,1745066831077,-159.044622,0.00020161,2]
[358398272,1745066831100,-217.740566,0.00020161,2]
[358398273,1745066831124,-151.0,0.00020161,2]
[358398274,1745066831149,-151.0,0.00020161,2]
[358398275,1745066831174,-151.0,0.00020161,2]
[358398276,1745066831198,-151.0,0.00020161,2]
[358398277,1745066831222,-151.0,0.00020161,2]
[358398278,1745066831246,-390.75,0.00020167,2]
[358398279,1745066831269,-198.0,0.00020219,2]
[358398280,1745066831293,-157.68,0.00020267,2]
[358398281,1745066831316,-5317.19,0.00020548,2]
[358398282,1745066831340,-161.95,0.0002055,2]
[358398283,1745066831365,-1134.35,0.00020576,2]
[358398284,1745066831390,-539.44,0.00020599,2]
[358398285,1745066831414,-150.0,0.00020615,7]
[358398286,1745066831439,-319.109529,0.0002064,2]
[358398287,1745066831463,-300.0,0.00020647,2]
[358398288,1745066831488,-21891.22288973,0.000207,2]
[358398289,1745066831514,-2297.68,0.00020705,2]
[358398290,1745066831539,-530.0,0.00020712,2]
[358398291,1745066831563,-896.28,0.0002076,2]
[358398292,1745066831589,-696.747102,0.000208,2]
[358398293,1745066831613,-7978.07,0.00020822,2]
[358398294,1745066831638,-166.66,0.00020879,2]
[358398295,1745066831664,-250.0,0.000209,5]
[358398296,1745066831691,-7221.6,0.00020951,2]
[358398297,1745066831717,-11002.08,0.00020951,2]
[358398298,1745066831742,-9999.99,0.00020951,2]
[358398299,1745066831766,-150.99,0.00020951,2]
[358398300,1745066831791,-151.0,0.00020951,2]
[358398301,1745066831815,-156.620071,0.00020951,2]
[358398302,1745066831839,-151.0,0.00020951,2]
[358398303,1745066831864,-151.0,0.00020951,2]
[358398304,1745066831889,-194.396954,0.00020951,2]
[358398305,1745066831913,-194.396954,0.00020951,2]
[358398306,1745066831937,-151.0,0.00020951,2]
[358398307,1745066831961,-151.0,0.00020951,2]
[358398308,1745066831986,-151.0,0.00020951,2]
[358398309,1745066832010,-151.0,0.00020951,2]
[358398310,1745066832034,-152.294968,0.00020951,2]
[358398311,1745066832058,-155.69359,0.00020951,2]
[358398312,1745066832082,-155.874203,0.00020951,2]
[358398313,1745066832106,-151.0,0.00020951,2]
[358398314,1745066832131,-151.0,0.00020951,2]
[358398315,1745066832156,-164.754431,0.00020951,2]
[358398316,1745066832181,-151.0,0.00020951,2]
[358398317,1745066832205,-151.0,0.00020951,2]
[358398318,1745066832231,-155.168342,0.00020951,2]
[358398319,1745066832256,-152.532568,0.00020951,2]
[358398320,1745066832280,-151.0,0.00020951,2]
[358398321,1745066832305,-159.586846,0.00020951,2]
[358398322,1745066832492,-151.0,0.00020951,2]
[358398323,1745066832520,-3194.85814722,0.00021,2]
[358398324,1745066832544,-20000.0,0.00021,2]
[358398325,1745066832568,-1153.12321766,0.00021,2]
[358398326,1745066832594,-190.31726602,0.00021,2]
[358398327,1745066832617,-153.539627,0.00021,2]
[358398328,1745066832642,-152.479812,0.00021,2]
[358398329,1745066832665,-152.34905,0.00021,2]
[358398330,1745066832689,-152.64716,0.00021,2]
[358398331,1745066832716,-350.0,0.00021,2]
[358398332,1745066832741,-2000.0,0.00021,2]
[358398333,1745066832766,-420.0,0.00021236,2]
[358398334,1745066832791,-319.109529,0.0002128,2]
[358398335,1745066832818,-250.0,0.00021337,2]
[358398336,1745066832844,-250.0,0.00021337,2]
[358398337,1745066832872,-250.0,0.00021369,2]
[358398338,1745066832897,-4102.95,0.0002137,2]
[358398339,1745066832924,-250.0,0.0002145,5]
[358398340,1745066832951,-166.66,0.00021568,2]
[358398341,1745066832979,-207.380483,0.00021595,2]
[358398342,1745066833003,-160.399823,0.00021595,2]
[358398343,1745066833028,-156.796197,0.00021595,2]
[358398344,1745066833056,-151.0,0.00021595,2]
[358398345,1745066833081,-151.0,0.00021595,2]
[358398346,1745066833107,-151.0,0.00021595,2]
[358398347,1745066833130,-151.0,0.00021595,2]
[358398348,1745066833155,-151.0,0.00021595,2]
[358398349,1745066833182,-151.0,0.00021595,2]
[358398350,1745066833207,-151.0,0.00021595,2]
[358398351,1745066833232,-696.747102,0.000216,2]
[358398352,1745066833257,-7303.70018349,0.000217,2]
[358398353,1745066833283,-360.0,0.00021777,2]
[358398354,1745066833308,-250.0,0.00021779,5]
[358398355,1745066833333,-5434.0,0.000218,2]
[358398356,1745066833358,-225.426294,0.000218,2]
[358398357,1745066833384,-217.740566,0.000218,2]
[358398358,1745066833409,-217.740566,0.000218,2]
[358398359,1745066833433,-161.736443,0.000218,2]
[358398360,1745066833459,-153.565386,0.000218,2]
[358398361,1745066833484,-3287.95485731,0.00021868,2]
[358398362,1745066833511,-319.109529,0.0002192,2]
[358398363,1745066833536,-161.95,0.0002192,2]
[358398364,1745066833564,-247.41369631,0.00022,2]
[358398365,1745066833589,-500.0,0.00022,2]
[358398366,1745066833613,-3339.41,0.00022,2]
[358398367,1745066833637,-151.0,0.00022,7]
[358398368,1745066833662,-157.34687,0.00022,7]
[358398369,1745066833690,-151.0,0.00022,7]
[358398370,1745066833716,-276.502687,0.00022,7]
[358398371,1745066833741,-276.502687,0.00022,7]
[358398372,1745066833767,-174.357056,0.00022,7]
[358398373,1745066833793,-151.0,0.00022,7]
[358398374,1745066833819,-151.0,0.00022,7]
[358398375,1745066833844,-153.702966,0.00022,7]
[358398376,1745066833868,-300.0,0.00022017,2]
[358398377,1745066833893,-610.0,0.00022082,2]
[358398378,1745066833920,-2793.32371516,0.000221,3]
[358398379,1745066833947,-231.86264545,0.0002211,2]
[358398380,1745066833972,-1000.0,0.00022213,2]
[358398381,1745066833996,-166.66,0.00022258,2]
[358398382,1745066834021,-151.0,0.000223,7]
[358398383,1745066834048,-151.0,0.000223,7]
[358398384,1745066834073,-156.275473,0.000223,7]
[358398385,1745066834100,-151.0,0.000223,7]
[358398386,1745066834125,-237.366299,0.000223,7]
[358398387,1745066834150,-696.747102,0.000224,2]
[358398388,1745066834174,-34212.00446389,0.000225,2]
[358398389,1745066834198,-154.465226,0.000225,7]
[358398390,1745066834222,-248.091522,0.000225,7]
[358398391,1745066834245,-151.0,0.000225,7]
[358398392,1745066834269,-153.726706,0.000225,7]
[358398393,1745066834294,-151.0,0.000225,7]
[358398394,1745066834320,-151.0,0.000225,7]
[358398395,1745066834344,-153.850885,0.000225,7]
[358398396,1745066834370,-153.95486,0.000225,7]
[358398397,1745066834395,-153.444203,0.000225,7]
[358398398,1745066834418,-151.0,0.000225,7]
[358398399,1745066834442,-290.471215,0.000225,7]
[358398400,1745066834466,-151.0,0.000225,7]
[358398401,1745066834492,-151.0,0.000225,7]
[358398402,1745066834520,-151.0,0.000225,7]
[358398403,1745066834546,-151.0,0.000225,7]
[358398404,1745066834573,-319.109529,0.0002256,2]
[358398405,1745066834602,-167.156689,0.0002256,2]
[358398406,1745066834626,-976.87,0.000226,2]
[358398407,1745066834651,-152.67,0.00022669,2]
[358398408,1745066834681,-2793.32371514,0.00022693,4]
[358398409,1745066834705,-504.69290839,0.0002271,2]
[358398410,1745066834730,-247.03089147,0.0002277,5]
[358398411,1745066834755,-1134.35,0.0002284,2]
[358398412,1745066834780,-166.66,0.00022947,2]
[358398413,1745066834805,-150.0,0.00022949,2]
[358398414,1745066834830,-150.0,0.00023,5]
[358398415,1745066834854,-387.82357322,0.00023,15]
[358398416,1745066834878,-320.0,0.00023,10]
[358398417,1745066835059,-400.0,0.00023,2]
[358398418,1745066835084,-402.87370022,0.0002301,2]
[358398419,1745066835110,-50308.28135559,0.000232,2]
[358398420,1745066835136,-173.000331,0.000232,2]
[358398421,1745066835163,-696.747102,0.000232,2]
[358398422,1745066835188,-151.0,0.000232,7]
[358398423,1745066835214,-151.0,0.000232,7]
[358398424,1745066835240,-151.0,0.000232,7]
[358398425,1745066835264,-151.0,0.000232,7]
[358398426,1745066835288,-151.0,0.000232,7]
[358398427,1745066835313,-151.0,0.000232,7]
[358398428,1745066835338,-151.0,0.000232,7]
[358398429,1745066835364,-587.0,0.0002325,2]
[358398430,1745066835388,-161.95,0.0002329,2]
[358398431,1745066835412,-200.0,0.000235,2]
[358398432,1745066835437,-10000.0,0.000235,5]
[358398433,1745066835461,-217.740566,0.000235,7]
[358398434,1745066835485,-217.740566,0.000235,7]
[358398435,1745066835513,-166.66,0.00023636,2]
[358398436,1745066835538,-487.24439259,0.00023747,2]
[358398437,1745066835563,-1386.97,0.00023836,2]
[358398438,1745066835588,-500.0,0.00023973,2]
[358398439,1745066835613,-310.42325894,0.00023999,2]
[358398440,1745066835636,-2200.0,0.00024,2]
[358398441,1745066835660,-59555.72301122,0.00024,2]
[358398442,1745066835686,-984.14924427,0.00024,2]
[358398443,1745066835712,-29433.77026495,0.00024,2]
[358398444,1745066835737,-151.0,0.00024,7]
[358398445,1745066835762,-197.42752,0.00024,7]
[358398446,1745066835787,-151.0,0.00024,7]
[358398447,1745066835812,-151.0,0.00024,7]
[358398448,1745066835836,-166.604683,0.00024,7]
[358398449,1745066835861,-151.0,0.00024,7]
[358398450,1745066835886,-151.0,0.00024,7]
[358398451,1745066835910,-154.962864,0.00024,7]
[358398452,1745066835931,-151.0,0.00024,7]
[358398453,1745066835953,-175.948337,0.00024,7]
[358398454,1745066835975,-151.0,0.00024,7]
[358398455,1745066835996,-151.0,0.00024,7]
[358398456,1745066836023,-157.250267,0.00024,7]
[358398457,1745066836048,-276.502687,0.00024,7]
[358398458,1745066836074,-276.502687,0.00024,7]
[358398459,1745066836102,-151.0,0.00024,7]
[358398460,1745066836126,-151.0,0.00024,7]
[358398461,1745066836154,-274.216266,0.00024,7]
[358398462,1745066836179,-151.0,0.00024,7]
[358398463,1745066836204,-151.0,0.00024,7]
[358398464,1745066836232,-151.0,0.00024,7]
[358398465,1745066836258,-194.396954,0.00024,7]
[358398466,1745066836283,-194.396954,0.00024,7]
[358398467,1745066836309,-151.0,0.00024,7]
[358398468,1745066836334,-151.0,0.00024,7]
[358398469,1745066836359,-151.0,0.00024,7]
[358398470,1745066836384,-159.541088,0.00024,7]
[358398471,1745066836410,-151.0,0.00024,7]
[358398472,1745066836435,-151.0,0.00024,7]
[358398473,1745066836460,-151.0,0.00024,7]
[358398474,1745066836485,-151.0,0.00024,7]
[358398475,1745066836513,-151.0,0.00024,7]
[358398476,1745066836538,-151.0,0.00024,7]
[358398477,1745066836563,-3339.41,0.000241,2]
[358398478,1745066836589,-500.0,0.00024147,2]
[358398479,1745066836615,-166.66,0.00024325,2]
[358398480,1745066836645,-2793.32371514,0.00024486,5]
[358398481,1745066836671,-1403.51650081,0.00024532,2]
[358398482,1745066836697,-1000.0,0.00024658,2]
[358398483,1745066836721,-151.0,0.00024658,7]
[358398484,1745066836747,-151.0,0.00024658,7]
[358398485,1745066836773,-151.0,0.00024658,7]
[358398486,1745066836798,-151.0,0.00024658,7]
[358398487,1745066836823,-161.95,0.0002466,2]
[358398488,1745066836847,-1000.0,0.00024681,2]
[358398489,1745066836871,-155.658655,0.000248,7]
[358398490,1745066836896,-155.935892,0.000248,7]
[358398491,1745066836921,-151.0,0.000248,7]
[358398492,1745066836944,-151.0,0.000248,7]
[358398493,1745066836969,-158.726609,0.000248,7]
[358398494,1745066836994,-151.0,0.000248,7]
[358398495,1745066837018,-164.687902,0.000248,7]
[358398496,1745066837044,-276.502687,0.000248,7]
[358398497,1745066837069,-276.502687,0.000248,7]
[358398498,1745066837094,-151.0,0.000248,7]
[358398499,1745066837119,-151.0,0.000248,7]
[358398500,1745066837144,-151.0,0.000248,7]
[358398501,1745066837168,-151.0,0.000248,7]
[358398502,1745066837192,-151.0,0.000248,7]
[358398503,1745066837216,-183.392153,0.000248,7]
[358398504,1745066837240,-154.538359,0.000248,7]
[358398505,1745066837264,-151.0,0.000248,7]
[358398506,1745066837288,-151.0,0.000248,7]
[358398507,1745066837312,-151.721771,0.000248,7]
[358398508,1745066837336,-335203.883835,0.000248,3]
[358398509,1745066837361,-217.740566,0.000248,7]
[358398510,1745066837387,-217.740566,0.000248,7]
[358398511,1745066837410,-151.0,0.000248,7]
[358398512,1745066837592,-151.0,0.000248,7]
[358398513,1745066837620,-151.0,0.000248,7]
[358398514,1745066837645,-151.0,0.000248,7]
[358398515,1745066837671,-151.0,0.000248,7]
[358398516,1745066837695,-151.0,0.000248,7]
[358398517,1745066837724,-151.0,0.000248,7]
[358398518,1745066837752,-151.0,0.000248,7]
[358398519,1745066837778,-151.0,0.000248,7]
[358398520,1745066837803,-194.396954,0.000248,7]
[358398521,1745066837828,-194.396954,0.000248,7]
[358398522,1745066837856,-151.0,0.000248,7]
[358398523,1745066837881,-151.0,0.000248,7]
[358398524,1745066837909,-154.679048,0.000248,7]
[358398525,1745066837935,-151.0,0.000248,7]
[358398526,1745066837963,-151.0,0.000248,7]
[358398527,1745066837989,-151.0,0.000248,7]
[358398528,1745066838015,-151.0,0.000248,7]
[358398529,1745066838040,-151.0,0.000248,7]
[358398530,1745066838065,-503.7365901,0.00024873,2]
[358398531,1745066838089,-500.0,0.00024873,2]
[358398532,1745066838115,-500.0,0.00024893,2]
[358398533,1745066838142,-319.109529,0.000249,3]
[358398534,1745066838169,-319.109529,0.000249,3]
[358398535,1745066838195,-319.109529,0.000249,3]
[358398536,1745066838221,-319.109529,0.000249,3]
[358398537,1745066838249,-319.109529,0.000249,3]
[358398538,1745066838277,-696.747102,0.000249,3]
[358398539,1745066838309,-696.747102,0.000249,3]
[358398540,1745066838335,-696.747102,0.000249,3]
[358398541,1745066838363,-696.747102,0.000249,3]
[358398542,1745066838390,-696.747102,0.000249,3]
[358398543,1745066838416,-270.495608,0.000249,2]
[358398544,1745066838441,-202.345789,0.000249,7]
[358398545,1745066838468,-262.040346,0.000249,7]
[358398546,1745066838493,-151.0,0.000249,7]
[358398547,1745066838522,-276.502687,0.000249,7]
[358398548,1745066838549,-276.502687,0.000249,7]
[358398549,1745066838575,-151.0,0.000249,7]
[358398550,1745066838601,-151.0,0.000249,7]
[358398551,1745066838626,-259.804492,0.000249,7]
[358398552,1745066838651,-217.740566,0.000249,7]
[358398553,1745066838676,-217.740566,0.000249,7]
[358398554,1745066838701,-151.0,0.000249,7]
[358398555,1745066838726,-151.0,0.000249,7]
[358398556,1745066838751,-151.0,0.000249,7]
[358398557,1745066838777,-151.0,0.000249,7]
[358398558,1745066838802,-450.0,0.00025,2]
[358398559,1745066838829,-1134.35,0.00025104,2]
[358398560,1745066838854,-823.0,0.00025454,2]
[358398561,1745066838879,-3683.60934529,0.00025809,2]
[358398562,1745066838903,-250.0,0.00025928,2]
[358398563,1745066838928,-161.95,0.00026031,2]
[358398564,1745066838953,-203.0,0.0002623,2]
[358398565,1745066838979,-2793.32371514,0.00026279,6]
[358398566,1745066839004,-22517.34263002,0.000264,2]
[358398567,1745066839030,-203.0,0.000264,2]
[358398568,1745066839055,-203.0,0.000264,2]
[358398569,1745066839080,-203.0,0.000264,2]
[358398570,1745066839108,-203.0,0.000264,2]
[358398571,1745066839134,-203.0,0.000264,2]
[358398572,1745066839160,-203.0,0.000264,2]
[358398573,1745066839186,-203.0,0.000264,2]
[358398574,1745066839217,-203.0,0.000264,2]
[358398575,1745066839243,-203.0,0.000264,2]
[358398576,1745066839268,-203.0,0.000264,2]
[358398577,1745066839294,-203.0,0.000264,2]
[358398578,1745066839321,-46107.02701788,0.000265,2]
[358398579,1745066839348,-222.825513,0.00026964,4]
[358398580,1745066839375,-250.0,0.00027,2]
[358398581,1745066839401,-997.11536716,0.00027,2]
[358398582,1745066839427,-300.0,0.00027,7]
[358398583,1745066839453,-500.0,0.00027,2]
[358398584,1745066839479,-223.55,0.000271,2]
[358398585,1745066839506,-3339.41,0.000271,2]
[358398586,1745066839535,-3543.57,0.00027123,2]
[358398587,1745066839562,-1000.0,0.00027149,2]
[358398588,1745066839590,-1134.35,0.00027368,2]
[358398589,1745066839615,-270.495608,0.00027378,2]
[358398590,1745066839640,-151.0,0.00027378,7]
[358398591,1745066839666,-276.502687,0.00027378,7]
[358398592,1745066839693,-276.502687,0.00027378,7]
[358398593,1745066839719,-151.0,0.00027378,7]
[358398594,1745066839745,-249.885628,0.00027378,7]
[358398595,1745066839772,-217.740566,0.00027378,7]
[358398596,1745066839796,-217.740566,0.00027378,7]
[358398597,1745066839822,-151.0,0.00027378,7]
[358398598,1745066839847,-151.0,0.00027378,7]
[358398599,1745066839873,-236.613327,0.00027378,7]
[358398600,1745066839900,-164.233014,0.00027378,7]
[358398601,1745066839924,-2000.0,0.00027397,2]
[358398602,1745066839950,-2000.0,0.00027397,2]
[358398603,1745066839975,-2000.0,0.00027397,2]
[358398604,1745066840000,-2000.0,0.00027397,2]
[358398605,1745066840026,-2000.0,0.00027397,2]
[358398606,1745066840052,-2000.0,0.00027397,2]
[358398607,1745066840235,-2000.0,0.00027397,2]
[358398608,1745066840261,-2000.0,0.00027397,2]
[358398609,1745066840290,-2000.0,0.00027397,2]
[358398610,1745066840316,-2000.0,0.00027397,2]
[358398611,1745066840341,-2000.0,0.00027397,2]
[358398612,1745066840366,-2000.0,0.00027397,2]
[358398613,1745066840391,-2000.0,0.00027397,2]
[358398614,1745066840416,-2000.0,0.00027397,2]
[358398615,1745066840442,-444.21390352,0.00027397,2]
[358398616,1745066840467,-151.0,0.00027397,7]
[358398617,1745066840492,-151.0,0.00027397,7]
[358398618,1745066840519,-151.0,0.00027397,7]
[358398619,1745066840544,-194.396954,0.00027397,7]
[358398620,1745066840571,-194.396954,0.00027397,7]
[358398621,1745066840598,-151.0,0.00027397,7]
[358398622,1745066840624,-151.0,0.00027397,7]
[358398623,1745066840649,-223.768387,0.00027397,7]
[358398624,1745066840677,-150.0,0.00027397,2]
[358398625,1745066840702,-6476.81,0.00027397,2]
[358398626,1745066840728,-206.95,0.00027397,2]
[358398627,1745066840754,-498.58,0.00027397,2]
[358398628,1745066840780,-173.71,0.00027397,10]
[358398629,1745066840923,151.0,0.000248,7]
[358398630,1745066840963,-711.87845003,0.000274,2]
[358398631,1745066840999,295.87968766,0.000207,2]
[358398632,1745066841447,500.0,0.000207,2]
[358398633,1745066841489,151.0,0.0002,2]
[358398634,1745066843126,500.0,0.00048193,120]
[358398635,1745066862938,500.0,0.00048193,120]
[358398636,1745066870605,-151.0,0.0002,2]
[358398637,1745066870634,-243.446047,0.0002,2]
[358398638,1745066870661,-243.446047,0.0002,2]
[358398639,1745066879455,999.99999999,0.00048193,120]
[358398640,1745066901775,969.00113443,0.00048193,30]
[358398641,1745066902369,365.35393511,0.00048193,30]
[358398642,1745066930858,227.0,0.00047929,30]
[358398646,1745066942421,2000.0,0.00047929,120]
[358398647,1745066947068,544.13891233,0.00047929,60]
[358398648,1745066952417,499.999999,0.00047929,120]
[358398649,1745066972191,500.0,0.00047929,120]
[358398650,1745067003129,386.88122421,0.00047929,120]
[358398651,1745067009801,500.0,0.00047929,120]
[358398663,1745067037827,-151.466761,0.0002,2]
[358398664,1745067037837,-151.466761,0.00020174,5]
[358398665,1745067037846,-150.0,0.00020709,2]
[358398666,1745067037856,-151.466761,0.000208,2]
[358398667,1745067037865,-243.446047,0.00020951,2]
[358398668,1745067037874,-243.446047,0.00020951,2]
[358398669,1745067037884,-151.466761,0.00021306,5]
[358398670,1745067037894,-151.466761,0.000216,2]
[358398671,1745067037903,-160.787794,0.000216,2]
[358398672,1745067037913,-151.466761,0.000224,2]
[358398673,1745067037923,-159.554765,0.000224,2]
[358398674,1745067037932,-160.787794,0.000224,2]
[358398675,1745067037941,-151.466761,0.00022437,5]
[358398676,1745067037951,-159.554765,0.00022437,5]
[358398677,1745067037960,-160.787794,0.00022437,5]
[358398678,1745067037969,-250.0,0.00022475,2]
[358398679,1745067037979,-250.0,0.00023046,2]
[358398680,1745067037989,-151.466761,0.000232,2]
[358398681,1745067038000,-159.554765,0.000232,2]
[358398682,1745067038011,-160.787794,0.000232,2]
[358398683,1745067038020,-195.37,0.000234,2]
[358398684,1745067038030,-151.466761,0.00023568,5]
[358398685,1745067038039,-159.554765,0.00023568,5]
[358398686,1745067038048,-160.787794,0.00023568,5]
[358398687,1745067038059,-250.0,0.0002371,2]
[358398688,1745067038068,-5087.1258461,0.00023939,2]
[358398689,1745067038078,-243.446047,0.00024,2]
[358398690,1745067038087,-243.446047,0.00024,2]
[358398691,1745067038097,-203.10479481,0.00024799,10]
[358398692,1745067038107,-243.446047,0.000248,2]
[358398693,1745067038116,-151.0,0.000248,7]
[358398694,1745067038126,-243.446047,0.000248,2]
[358398695,1745067038135,-151.466761,0.000249,3]
[358398696,1745067038145,-151.466761,0.000249,3]
[358398697,1745067038155,-151.466761,0.000249,3]
[358398698,1745067038165,-151.466761,0.000249,3]
[358398699,1745067038176,-159.554765,0.000249,3]
[358398700,1745067038186,-159.554765,0.000249,3]
[358398701,1745067038197,-160.787794,0.000249,3]
[358398703,1745067038206,-160.787794,0.000249,3]
[358398705,1745067038216,-500.0,0.00025087,2]
[358398707,1745067038229,-195.37,0.000255,2]
[358398708,1745067038240,-195.37,0.00026,2]
[358398709,1745067038250,-203.0,0.000264,2]
[358398710,1745067038260,-203.0,0.000264,2]
[358398712,1745067038270,-203.0,0.000264,2]
[358398714,1745067038279,-203.0,0.000264,2]
[358398715,1745067038289,-203.0,0.000264,2]
[358398716,1745067038301,-150.0,0.00026447,7]
[358398717,1745067038311,-278.367,0.00026606,2]
[358398718,1745067038321,-488.12154997,0.000274,2]
[358398719,1745067038331,-650.0,0.000274,2]
[358398720,1745067038342,-161.95,0.00027401,2]
[358398721,1745067038352,-300.0,0.00027499,2]
[358398722,1745067038361,-193.68321224,0.000275,2]
[358398723,1745067038371,-12575.94223684,0.000275,5]
[358398724,1745067038380,-5996.22,0.00027668,2]
[358398725,1745067038391,-276.89,0.00028,2]
[358398726,1745067038400,-25419.71485615,0.00028,2]